[Event "FIDE Women World Blitz 2021"]
[Site "Warsaw"]
[Date "2021.12.29"]
[Round "2.15"]
[White "Gaponenko, Inna"]
[Black "Gaboyan, Susanna"]
[Result "1/2-1/2"]
[ECO "B22"]
[WhiteElo "2339"]
[BlackElo "2253"]
[Annotator "NA"]
[PlyCount "140"]
[EventDate "2021.12.29"]
[EventType "swiss"]
[EventCountry "POL"]
[Tiebreak "Cut1 Buchholz"]
[SourceTitle "playchess.com"]
[Source "ChessBase"]
[SourceQuality "1"]
[TimeControl "180+2"]

1. e4 {[%emt 0:00:01]} c5 {[%emt 0:00:00]} 2. c3 {[%emt 0:00:04]} d5 {[%emt 0:
00:01]} 3. exd5 {[%emt 0:00:01]} Qxd5 {[%emt 0:00:01]} 4. d4 {[%emt 0:00:01]}
Nc6 {[%emt 0:00:03]} 5. Nf3 {[%emt 0:00:01]} cxd4 {[%emt 0:00:01]} 6. cxd4 {
[%emt 0:00:01]} e5 {[%emt 0:00:02]} 7. Nc3 {[%emt 0:00:02]} Bb4 {[%emt 0:00:00]
} 8. Bd2 {[%emt 0:00:39]} Bxc3 {[%emt 0:00:02]} 9. Bxc3 {[%emt 0:00:00]} e4 {
[%emt 0:00:01]} 10. Ne5 {[%emt 0:00:02]} Nxe5 {[%emt 0:00:01]} 11. dxe5 {
[%emt 0:00:01]} Ne7 {[%emt 0:00:01]} 12. Qa4+ {[%emt 0:00:34]} Bd7 {[%emt 0:00:
01]} 13. Qb4 {[%emt 0:00:01]} a5 {[%emt 0:00:10]} 14. Qd6 {[%emt 0:00:01]} Qxd6
{[%emt 0:00:37]} 15. exd6 {[%emt 0:00:02]} Nf5 {[%emt 0:00:01]} 16. O-O-O {
[%emt 0:00:02]} O-O {[%emt 0:00:11]} 17. g4 {[%emt 0:00:25]} Nh4 {[%emt 0:00:
03]} 18. h3 {[%emt 0:00:02]} b5 {[%emt 0:00:02]} 19. Be2 {[%emt 0:00:12]} Ng6 {
[%emt 0:00:08]} 20. Rd4 {[%emt 0:00:10]} Nf4 {[%emt 0:00:27]} 21. Bf1 {[%emt 0:
00:06]} b4 {[%emt 0:00:10]} 22. Bd2 {[%emt 0:00:10]} Ne6 {[%emt 0:00:02]} 23.
Rc4 {[%emt 0:00:01]} Rac8 {[%emt 0:00:06]} 24. Kb1 {[%emt 0:00:20]} Rxc4 {
[%emt 0:00:17]} 25. Bxc4 {[%emt 0:00:01]} Rc8 {[%emt 0:00:00]} 26. Rc1 {
[%emt 0:00:07]} Rc6 {[%emt 0:00:16]} 27. Bxe6 {[%emt 0:00:06]} Rxc1+ {[%emt 0:
00:13]} 28. Kxc1 {[%emt 0:00:11]} Bxe6 {[%emt 0:00:01]} 29. b3 {[%emt 0:00:01]}
Kf8 {[%emt 0:00:19]} 30. Be3 {[%emt 0:00:01]} Ke8 {[%emt 0:00:06]} 31. Bb6 {
[%emt 0:00:01]} a4 {[%emt 0:00:01]} 32. bxa4 {[%emt 0:00:08]} Bxa2 {[%emt 0:00:
02]} 33. Bc5 {[%emt 0:00:05]} Kd7 {[%emt 0:00:10]} 34. Bxb4 {[%emt 0:00:01]}
Kc6 {[%emt 0:00:02]} 35. Kd2 {[%emt 0:00:06]} Be6 {[%emt 0:00:02]} 36. Ke3 {
[%emt 0:00:03]} h5 {[%emt 0:00:12]} 37. gxh5 {[%emt 0:00:11]} Bxh3 {[%emt 0:00:
01]} 38. Kxe4 {[%emt 0:00:01]} Bg4 {[%emt 0:00:02]} 39. a5 {[%emt 0:00:04]}
Bxh5 {[%emt 0:00:13]} 40. a6 {[%emt 0:00:01]} Bg4 {[%emt 0:00:01]} 41. a7 {
[%emt 0:00:02]} Kb7 {[%emt 0:00:01]} 42. Bc5 {[%emt 0:00:02]} Bd7 {[%emt 0:00:
02]} 43. Ke5 {[%emt 0:00:02]} Bc6 {[%emt 0:00:08]} 44. f4 {[%emt 0:00:02]} Kc8
{[%emt 0:00:02]} 45. f5 {[%emt 0:00:03]} Kd7 {[%emt 0:00:02]} 46. f6 {[%emt 0:
00:01]} gxf6+ {[%emt 0:00:02]} 47. Kxf6 {[%emt 0:00:01]} Bd5 {[%emt 0:00:02]}
48. Bb4 {[%emt 0:00:05]} Bc6 {[%emt 0:00:04]} 49. Kxf7 {[%emt 0:00:02]} Bb7 {
[%emt 0:00:01]} 50. Kf6 {[%emt 0:00:01]} Ba8 {[%emt 0:00:02]} 51. Ke5 {[%emt 0:
00:02]} Bb7 {[%emt 0:00:04]} 52. Kd4 {[%emt 0:00:01]} Kc6 {[%emt 0:00:01]} 53.
Ba3 {[%emt 0:00:02]} Ba8 {[%emt 0:00:02]} 54. Ke5 {[%emt 0:00:03]} Kd7 {
[%emt 0:00:01]} 55. Bc5 {[%emt 0:00:02]} Bb7 {[%emt 0:00:01]} 56. Bb6 {[%emt 0:
00:02]} Ba8 {[%emt 0:00:02]} 57. Bc7 {[%emt 0:00:01]} Bb7 {[%emt 0:00:02]} 58.
Kd4 {[%emt 0:00:01]} Kc6 {[%emt 0:00:02]} 59. Kc4 {[%emt 0:00:00]} Ba8 {
[%emt 0:00:02]} 60. Kb4 {[%emt 0:00:01]} Bb7 {[%emt 0:00:02]} 61. Ka5 {[%emt 0:
00:03]} Ba8 {[%emt 0:00:02]} 62. Bb8 {[%emt 0:00:07]} Bb7 {[%emt 0:00:01]} 63.
Kb4 {[%emt 0:00:02]} Ba8 {[%emt 0:00:02]} 64. Kc4 {[%emt 0:00:01]} Bb7 {
[%emt 0:00:01]} 65. Kd4 {[%emt 0:00:00]} Ba8 {[%emt 0:00:02]} 66. Ke5 {[%emt 0:
00:02]} Kd7 {[%emt 0:00:01]} 67. Kf6 {[%emt 0:00:06]} Bb7 {[%emt 0:00:02]} 68.
Bc7 {[%emt 0:00:03]} Ba8 {[%emt 0:00:00]} 69. Ke5 {[%emt 0:00:02]} Bb7 {
[%emt 0:00:02]} 70. Kd4 {[%emt 0:00:01]} Kc6 {[%emt 0:00:01]} 1/2-1/2

[Event "FIDE Women World Blitz 2021"]
[Site "Warsaw"]
[Date "2021.12.29"]
[Round "2.16"]
[White "Muetsch, Annmarie"]
[Black "Kamalidenova, Meruert"]
[Result "0-1"]
[ECO "B23"]
[WhiteElo "2279"]
[BlackElo "2339"]
[Annotator "NA"]
[PlyCount "122"]
[EventDate "2021.12.29"]
[EventType "swiss"]
[EventCountry "POL"]
[Tiebreak "Cut1 Buchholz"]
[SourceTitle "playchess.com"]
[Source "ChessBase"]
[SourceQuality "1"]
[TimeControl "180+2"]

1. e4 {[%emt 0:13:49]} c5 {[%emt 0:00:01]} 2. Nc3 {[%emt 0:00:00]} Nc6 {
[%emt 0:00:03]} 3. Bb5 {[%emt 0:00:00]} Nd4 {[%emt 0:00:01]} 4. Nf3 {[%emt 0:
00:05]} g6 {[%emt 0:00:13]} 5. Bc4 {[%emt 0:00:00]} Bg7 {[%emt 0:00:10]} 6.
Nxd4 {[%emt 0:00:00]} cxd4 {[%emt 0:00:02]} 7. Qf3 {[%emt 0:00:00]} e6 {
[%emt 0:00:13]} 8. Nb5 {[%emt 0:00:00]} Qb6 {[%emt 0:00:04]} 9. Qg3 {[%emt 0:
00:00]} e5 {[%emt 0:00:10]} 10. Qa3 {[%emt 0:00:00]} Bf8 {[%emt 0:00:16]} 11.
Qf3 {[%emt 0:00:00]} d5 {[%emt 0:00:42]} 12. Bxd5 {[%emt 0:00:00]} Be6 {
[%emt 0:00:06]} 13. Bxe6 {[%emt 0:00:00]} fxe6 {[%emt 0:00:02]} 14. a4 {
[%emt 0:00:00]} Rc8 {[%emt 0:00:11]} 15. Qb3 {[%emt 0:00:00]} Nf6 {[%emt 0:00:
15]} 16. a5 {[%emt 0:00:00]} Qc6 {[%emt 0:00:06]} 17. d3 {[%emt 0:00:00]} Kf7 {
[%emt 0:00:11]} 18. c3 {[%emt 0:00:00]} dxc3 {[%emt 0:00:14]} 19. Nxc3 {
[%emt 0:00:00]} Rd8 {[%emt 0:00:07]} 20. Na4 {[%emt 0:00:00]} Qd7 {[%emt 0:00:
13]} 21. Be3 {[%emt 0:00:00]} Qxd3 {[%emt 0:00:05]} 22. Qxd3 {[%emt 0:00:00]}
Rxd3 {[%emt 0:00:01]} 23. Ke2 {[%emt 0:00:00]} Rb3 {[%emt 0:00:04]} 24. f3 {
[%emt 0:00:00]} Be7 {[%emt 0:00:05]} 25. Rhd1 {[%emt 0:00:00]} Rc8 {[%emt 0:00:
01]} 26. Rac1 {[%emt 0:00:00]} Rxc1 {[%emt 0:00:05]} 27. Bxc1 {[%emt 0:00:00]}
Rb5 {[%emt 0:00:07]} 28. Bd2 {[%emt 0:00:00]} Bb4 {[%emt 0:00:03]} 29. Bxb4 {
[%emt 0:00:00]} Rxb4 {[%emt 0:00:01]} 30. Ra1 {[%emt 0:00:00]} Rb5 {[%emt 0:00:
01]} 31. Kd3 {[%emt 0:00:00]} Rxa5 {[%emt 0:00:02]} 32. b4 {[%emt 0:00:00]} Ra6
{[%emt 0:00:02]} 33. b5 {[%emt 0:00:00]} Ra5 {[%emt 0:00:02]} 34. Kc4 {[%emt 0:
00:00]} Nd7 {[%emt 0:00:02]} 35. Kb4 {[%emt 0:00:00]} b6 {[%emt 0:00:02]} 36.
Rd1 {[%emt 0:00:00]} Ke7 {[%emt 0:00:01]} 37. Rc1 {[%emt 0:00:00]} h5 {[%emt 0:
00:02]} 38. Rc7 {[%emt 0:00:00]} Kd6 {[%emt 0:00:03]} 39. Rc8 {[%emt 0:00:00]}
Ke7 {[%emt 0:00:01]} 40. Rg8 {[%emt 0:00:00]} Kf7 {[%emt 0:00:00]} 41. Rh8 {
[%emt 0:00:00]} Ke7 {[%emt 0:00:02]} 42. Rh7+ {[%emt 0:00:00]} Kd6 {[%emt 0:00:
01]} 43. Rg7 {[%emt 0:00:00]} a6 {[%emt 0:00:02]} 44. Nc3 {[%emt 0:00:00]} axb5
{[%emt 0:00:03]} 45. Nxb5+ {[%emt 0:00:00]} Kc6 {[%emt 0:00:00]} 46. Nc3 {
[%emt 0:00:00]} Ra1 {[%emt 0:00:02]} 47. Rxg6 {[%emt 0:00:00]} Nc5 {[%emt 0:00:
01]} 48. g4 {[%emt 0:00:00]} hxg4 {[%emt 0:00:01]} 49. fxg4 {[%emt 0:00:00]}
Rh1 {[%emt 0:00:02]} 50. Rh6 {[%emt 0:00:00]} Nd3+ {[%emt 0:00:02]} 51. Kc4 {
[%emt 0:00:00]} Nf4 {[%emt 0:00:01]} 52. g5 {[%emt 0:00:00]} Rg1 {[%emt 0:00:
03]} 53. h4 {[%emt 0:00:00]} Rg4 {[%emt 0:00:02]} 54. Nb5 {[%emt 0:00:00]} Rg3
{[%emt 0:00:05]} 55. Na7+ {[%emt 0:00:00]} Kb7 {[%emt 0:00:01]} 56. Rh7+ {
[%emt 0:00:00]} Kb8 {[%emt 0:00:02]} 57. Nc6+ {[%emt 0:00:00]} Kc8 {[%emt 0:00:
01]} 58. Kb5 {[%emt 0:00:00]} Rb3+ {[%emt 0:00:01]} 59. Ka6 {[%emt 0:00:00]}
Nd3 {[%emt 0:00:08]} 60. Na7+ {[%emt 0:00:00]} Kd8 {[%emt 0:00:03]} 61. g6 {
[%emt 0:00:00]} Nc5# {[%emt 0:00:00]} 0-1

[Event "FIDE Women World Blitz 2021"]
[Site "Warsaw"]
[Date "2021.12.29"]
[Round "2.17"]
[White "Goraj, Barbara"]
[Black "Danielian, Elina"]
[Result "0-1"]
[ECO "B07"]
[WhiteElo "1902"]
[BlackElo "2450"]
[Annotator "ChessBase"]
[PlyCount "102"]
[EventDate "2021.12.29"]
[EventType "swiss"]
[EventCountry "POL"]
[Tiebreak "Cut1 Buchholz"]
[SourceTitle "playchess.com"]
[Source "ChessBase"]
[SourceQuality "1"]
[TimeControl "180+2"]

1. e4 {[%emt 0:00:01]} d6 {[%emt 0:00:00]} 2. d4 {[%emt 0:00:02]} Nf6 {[%emt 0:
00:01]} 3. Nc3 {[%emt 0:00:01]} c6 {[%emt 0:00:01]} 4. Nf3 {[%emt 0:00:04]} Bg4
{[%emt 0:00:01]} 5. h3 {[%emt 0:00:04]} Bh5 {[%emt 0:00:01]} 6. Be3 {[%emt 0:
00:19]} e6 {[%emt 0:00:02]} 7. Bd3 {[%emt 0:00:11]} d5 {[%emt 0:00:05]} 8. e5 {
[%emt 0:00:40]} Nfd7 {[%emt 0:00:01]} 9. Ne2 {[%emt 0:00:05]} Bxf3 {[%emt 0:00:
02]} 10. gxf3 {[%emt 0:00:01]} c5 {[%emt 0:00:05]} 11. c3 {[%emt 0:00:02]} Nc6
{[%emt 0:00:01]} 12. Rc1 {[%emt 0:00:07]} a6 {[%emt 0:00:20]} 13. h4 {[%emt 0:
00:01]} h5 {[%emt 0:00:05]} 14. Bg5 {[%emt 0:00:24]} Be7 {[%emt 0:00:45]} 15.
Rg1 {[%emt 0:00:02]} g6 {[%emt 0:00:04]} 16. Bb1 {[%emt 0:00:21]} Qb6 {[%emt 0:
00:06]} 17. Bxe7 {[%emt 0:00:29]} Nxe7 {[%emt 0:00:07]} 18. Qd2 {[%emt 0:00:05]
} cxd4 {[%emt 0:00:27]} 19. cxd4 {[%emt 0:00:10]} Nc6 {[%emt 0:00:04]} 20. f4 {
[%emt 0:00:11]} Qa5 {[%emt 0:00:51]} 21. Rg3 {[%emt 0:00:10]} Qxd2+ {[%emt 0:
00:04]} 22. Kxd2 {[%emt 0:00:01]} Ke7 {[%emt 0:00:11]} 23. Rgc3 {[%emt 0:00:07]
} Rhc8 {[%emt 0:00:05]} 24. Ke3 {[%emt 0:00:02]} Nb6 {[%emt 0:00:07]} 25. b3 {
[%emt 0:00:01]} Nd7 {[%emt 0:00:09]} 26. Ng1 {[%emt 0:00:02]} Rc7 {[%emt 0:00:
04]} 27. Nf3 {[%emt 0:00:02]} Rac8 {[%emt 0:00:01]} 28. Ne1 {[%emt 0:00:03]}
Kd8 {[%emt 0:00:03]} 29. a3 {[%emt 0:00:04]} Na5 {[%emt 0:00:02]} 30. Kd2 {
[%emt 0:00:03]} Nxb3+ {[%emt 0:00:02]} 31. Rxb3 {[%emt 0:00:04]} Rxc1 {[%emt 0:
00:01]} 32. Rxb7 {[%emt 0:00:02]} R1c7 {[%emt 0:00:01]} 33. Rb2 {[%emt 0:00:02]
} Rb8 {[%emt 0:00:01]} 34. Rxb8+ {[%emt 0:00:02]} Nxb8 {[%emt 0:00:01]} 35. Nd3
{[%emt 0:00:02]} Nc6 {[%emt 0:00:01]} 36. Ke3 {[%emt 0:00:02]} Rb7 {[%emt 0:00:
01]} 37. Bc2 {[%emt 0:00:02]} a5 {[%emt 0:00:00]} 38. Nc5 {[%emt 0:00:01]} Rb2
{[%emt 0:00:02]} 39. Bd3 {[%emt 0:00:03]} Ra2 {[%emt 0:00:02]} 40. a4 {[%emt 0:
00:01]} Nb4 {[%emt 0:00:01]} 41. Bb5 {[%emt 0:00:04]} Ra3+ {[%emt 0:00:03]} 42.
Kd2 {[%emt 0:00:02]} Rh3 {[%emt 0:00:02]} 43. Nb7+ {[%emt 0:00:02]} Kc7 {
[%emt 0:00:03]} 44. Nxa5 {[%emt 0:00:01]} Rxh4 {[%emt 0:00:01]} 45. Kc3 {
[%emt 0:00:02]} Na2+ {[%emt 0:00:02]} 46. Kb2 {[%emt 0:00:02]} Rxf4 {[%emt 0:
00:01]} 47. Kxa2 {[%emt 0:00:02]} h4 {[%emt 0:00:01]} 48. Nb3 {[%emt 0:00:04]}
h3 {[%emt 0:00:01]} 49. a5 {[%emt 0:00:02]} h2 {[%emt 0:00:03]} 50. a6 {
[%emt 0:00:00]} h1=Q {[%emt 0:00:03]} 51. Nc5 {[%emt 0:00:03]} Kb6 {[%emt 0:00:
02]} 0-1

[Event "FIDE Women World Blitz 2021"]
[Site "Warsaw"]
[Date "2021.12.29"]
[Round "2.18"]
[White "Assaubayeva, Bibisara"]
[Black "Serikbay, Assel"]
[Result "1-0"]
[ECO "D11"]
[WhiteElo "2400"]
[BlackElo "2237"]
[Annotator "NA"]
[PlyCount "61"]
[EventDate "2021.12.29"]
[EventType "swiss"]
[EventCountry "POL"]
[Tiebreak "Cut1 Buchholz"]
[SourceTitle "playchess.com"]
[Source "ChessBase"]
[SourceQuality "1"]
[TimeControl "180+2"]

1. d4 {[%emt 0:00:01]} d5 {[%emt 0:00:01]} 2. c4 {[%emt 0:00:01]} c6 {[%emt 0:
00:01]} 3. Nf3 {[%emt 0:00:01]} Nf6 {[%emt 0:00:01]} 4. e3 {[%emt 0:00:00]} a6
{[%emt 0:00:01]} 5. Nbd2 {[%emt 0:00:04]} g6 {[%emt 0:00:09]} 6. Be2 {[%emt 0:
00:04]} Bg7 {[%emt 0:00:02]} 7. O-O {[%emt 0:00:02]} O-O {[%emt 0:00:02]} 8.
Ne5 {[%emt 0:00:05]} Nbd7 {[%emt 0:00:03]} 9. Ndf3 {[%emt 0:00:02]} Ne4 {
[%emt 0:00:06]} 10. Qb3 {[%emt 0:00:07]} e6 {[%emt 0:00:16]} 11. Rd1 {[%emt 0:
00:14]} Qc7 {[%emt 0:00:18]} 12. Nxd7 {[%emt 0:00:09]} Bxd7 {[%emt 0:00:01]}
13. Bd2 {[%emt 0:00:01]} dxc4 {[%emt 0:00:28]} 14. Qxc4 {[%emt 0:00:05]} b5 {
[%emt 0:00:23]} 15. Qc2 {[%emt 0:00:02]} Nxd2 {[%emt 0:00:05]} 16. Rxd2 {
[%emt 0:00:08]} Rac8 {[%emt 0:00:20]} 17. Rc1 {[%emt 0:00:01]} Qa5 {[%emt 0:00:
03]} 18. a3 {[%emt 0:00:08]} Rfd8 {[%emt 0:00:10]} 19. Rd3 {[%emt 0:00:26]} e5
{[%emt 0:00:40]} 20. dxe5 {[%emt 0:00:54]} c5 {[%emt 0:00:01]} 21. Rcd1 {
[%emt 0:00:10]} Qc7 {[%emt 0:00:05]} 22. Rd6 {[%emt 0:00:09]} c4 {[%emt 0:00:
05]} 23. Qd2 {[%emt 0:00:10]} c3 {[%emt 0:00:13]} 24. bxc3 {[%emt 0:00:04]}
Qxc3 {[%emt 0:00:02]} 25. Rxd7 {[%emt 0:00:32]} Qxd2 {[%emt 0:00:02]} 26. R7xd2
{[%emt 0:00:01]} Rxd2 {[%emt 0:00:02]} 27. Rxd2 {[%emt 0:00:01]} Rc3 {[%emt 0:
00:07]} 28. g4 {[%emt 0:00:04]} Rxa3 {[%emt 0:00:02]} 29. Rd8+ {[%emt 0:00:01]}
Bf8 {[%emt 0:00:00]} 30. e6 {[%emt 0:00:02]} fxe6 {[%emt 0:00:03]} 31. Ng5 {
[%emt 0:00:03]} 1-0

[Event "FIDE Women World Blitz 2021"]
[Site "Warsaw"]
[Date "2021.12.29"]
[Round "2.19"]
[White "Padmini, Rout"]
[Black "Antolak, Julia"]
[Result "0-1"]
[ECO "A30"]
[WhiteElo "2353"]
[BlackElo "2334"]
[Annotator "NA"]
[PlyCount "110"]
[EventDate "2021.12.29"]
[EventType "swiss"]
[EventCountry "POL"]
[Tiebreak "Cut1 Buchholz"]
[SourceTitle "playchess.com"]
[Source "ChessBase"]
[SourceQuality "1"]
[TimeControl "180+2"]

1. Nf3 {[%emt 0:00:02]} Nf6 {[%emt 0:00:03]} 2. g3 {[%emt 0:00:01]} e6 {
[%emt 0:00:01]} 3. Bg2 {[%emt 0:00:02]} c5 {[%emt 0:00:01]} 4. O-O {[%emt 0:00:
02]} Be7 {[%emt 0:00:01]} 5. c4 {[%emt 0:00:05]} O-O {[%emt 0:00:03]} 6. b3 {
[%emt 0:00:08]} Nc6 {[%emt 0:00:03]} 7. Bb2 {[%emt 0:00:01]} b6 {[%emt 0:00:02]
} 8. d4 {[%emt 0:00:04]} cxd4 {[%emt 0:00:04]} 9. Nxd4 {[%emt 0:00:02]} Bb7 {
[%emt 0:00:01]} 10. Nc3 {[%emt 0:00:05]} Rc8 {[%emt 0:00:06]} 11. Ndb5 {
[%emt 0:00:02]} Ne8 {[%emt 0:00:34]} 12. Nxa7 {[%emt 0:00:05]} Ra8 {[%emt 0:00:
16]} 13. Nab5 {[%emt 0:00:02]} Qc8 {[%emt 0:00:17]} 14. Qd2 {[%emt 0:00:03]}
Nb4 {[%emt 0:00:06]} 15. Bxb7 Qxb7 {[%emt 0:00:02]} 16. Rfd1 {[%emt 0:00:19]}
d6 {[%emt 0:00:16]} 17. a3 {[%emt 0:00:15]} Nc6 {[%emt 0:00:02]} 18. Qe3 {
[%emt 0:00:03]} Na5 {[%emt 0:00:42]} 19. Ne4 {[%emt 0:00:09]} d5 {[%emt 0:00:
08]} 20. cxd5 {[%emt 0:00:09]} exd5 {[%emt 0:00:01]} 21. Nd2 {[%emt 0:00:32]}
Bf6 {[%emt 0:00:04]} 22. Bxf6 {[%emt 0:00:14]} Nxf6 {[%emt 0:00:01]} 23. Qd3 {
[%emt 0:00:07]} Rad8 {[%emt 0:00:07]} 24. Rac1 {[%emt 0:00:02]} Qe7 {[%emt 0:
00:35]} 25. Rc7 {[%emt 0:00:20]} Qe6 {[%emt 0:00:04]} 26. Rdc1 {[%emt 0:00:05]}
Rfe8 {[%emt 0:00:02]} 27. Nd4 {[%emt 0:00:09]} Qd6 {[%emt 0:00:03]} 28. Nb5 {
[%emt 0:00:13]} Qe6 {[%emt 0:00:01]} 29. e3 {[%emt 0:00:09]} Ne4 {[%emt 0:00:
02]} 30. Nf1 {[%emt 0:00:13]} Qf6 {[%emt 0:00:04]} 31. R7c2 {[%emt 0:00:04]}
Nb7 {[%emt 0:00:06]} 32. Nd4 {[%emt 0:00:03]} Nbc5 {[%emt 0:00:01]} 33. Qd1 {
[%emt 0:00:03]} Ra8 {[%emt 0:00:02]} 34. b4 {[%emt 0:00:01]} Ne6 {[%emt 0:00:
02]} 35. Nxe6 {[%emt 0:00:05]} Qxe6 {[%emt 0:00:01]} 36. Qd3 {[%emt 0:00:02]}
Qf5 {[%emt 0:00:05]} 37. Rd1 {[%emt 0:00:04]} Rad8 {[%emt 0:00:02]} 38. Re2 {
[%emt 0:00:03]} Qe6 {[%emt 0:00:02]} 39. f3 {[%emt 0:00:03]} Ng5 {[%emt 0:00:
01]} 40. Kf2 {[%emt 0:00:02]} Qf6 {[%emt 0:00:01]} 41. Nd2 {[%emt 0:00:03]}
Ne4+ {[%emt 0:00:04]} 42. Nxe4 {[%emt 0:00:03]} dxe4 {[%emt 0:00:01]} 43. Qc2 {
[%emt 0:00:03]} Qxf3+ {[%emt 0:00:02]} 44. Kg1 {[%emt 0:00:04]} Rxd1+ 45. Qxd1
{[%emt 0:00:00]} h6 {[%emt 0:00:02]} 46. Qe1 {[%emt 0:00:03]} Rd8 {[%emt 0:00:
01]} 47. Rd2 {[%emt 0:00:02]} Rc8 {[%emt 0:00:02]} 48. Rd1 {[%emt 0:00:02]} Rc2
{[%emt 0:00:04]} 49. Rd2 {[%emt 0:00:01]} Rc8 {[%emt 0:00:02]} 50. a4 {[%emt 0:
00:01]} Qf6 {[%emt 0:00:01]} 51. a5 {[%emt 0:00:01]} bxa5 {[%emt 0:00:02]} 52.
bxa5 {[%emt 0:00:01]} Qa6 {[%emt 0:00:01]} 53. Ra2 {[%emt 0:00:01]} Rb8 {
[%emt 0:00:05]} 54. Qd2 {[%emt 0:00:01]} Rb1+ {[%emt 0:00:01]} 55. Kg2 {
[%emt 0:00:03]} Qf1# {[%emt 0:00:01]} 0-1

[Event "FIDE Women World Blitz 2021"]
[Site "Warsaw"]
[Date "2021.12.29"]
[Round "2.20"]
[White "Dylag, Emilia"]
[Black "Bulmaga, Irina"]
[Result "0-1"]
[ECO "E16"]
[WhiteElo "1863"]
[BlackElo "2405"]
[Annotator "NA"]
[PlyCount "62"]
[EventDate "2021.12.29"]
[EventType "swiss"]
[EventCountry "POL"]
[Tiebreak "Cut1 Buchholz"]
[SourceTitle "playchess.com"]
[Source "ChessBase"]
[SourceQuality "1"]
[TimeControl "180+2"]

1. d4 {[%emt 0:00:01]} Nf6 {[%emt 0:00:02]} 2. c4 {[%emt 0:00:02]} e6 {[%emt 0:
00:01]} 3. Nf3 {[%emt 0:00:02]} Bb4+ {[%emt 0:00:01]} 4. Nbd2 {[%emt 0:00:02]}
O-O {[%emt 0:00:03]} 5. g3 {[%emt 0:00:02]} b6 {[%emt 0:00:03]} 6. Bg2 {
[%emt 0:00:02]} Bb7 {[%emt 0:00:01]} 7. O-O {[%emt 0:00:07]} d5 {[%emt 0:00:02]
} 8. Ne5 {[%emt 0:00:17]} Bd6 {[%emt 0:00:02]} 9. b3 {[%emt 0:00:09]} c5 {
[%emt 0:00:11]} 10. Bb2 {[%emt 0:00:06]} Nbd7 {[%emt 0:00:15]} 11. Rc1 {
[%emt 0:00:41]} cxd4 {[%emt 0:00:18]} 12. Nxd7 {[%emt 0:00:05]} Qxd7 {[%emt 0:
00:02]} 13. Bxd4 {[%emt 0:00:18]} e5 {[%emt 0:00:01]} 14. Bb2 {[%emt 0:00:02]}
d4 {[%emt 0:00:02]} 15. Bxb7 {[%emt 0:00:18]} Qxb7 {[%emt 0:00:02]} 16. Qc2 {
[%emt 0:00:17]} a5 {[%emt 0:00:02]} 17. a4 {[%emt 0:00:27]} Rfe8 {[%emt 0:00:
04]} 18. Qf5 {[%emt 0:00:13]} Bc5 {[%emt 0:00:08]} 19. Nf3 {[%emt 0:00:06]} Qe7
{[%emt 0:00:03]} 20. Rcd1 {[%emt 0:00:06]} Rad8 {[%emt 0:00:03]} 21. Bc1 {
[%emt 0:00:06]} e4 {[%emt 0:00:12]} 22. Nh4 {[%emt 0:00:08]} g6 {[%emt 0:00:21]
} 23. Qf4 {[%emt 0:00:05]} Qe6 {[%emt 0:00:09]} 24. Ng2 {[%emt 0:00:03]} Bf8 {
[%emt 0:00:13]} 25. Qg5 {[%emt 0:00:02]} h6 {[%emt 0:00:04]} 26. Qf4 {[%emt 0:
00:02]} g5 {[%emt 0:00:05]} 27. Qd2 {[%emt 0:00:02]} Bg7 {[%emt 0:00:09]} 28.
h4 {[%emt 0:00:01]} Nh7 {[%emt 0:00:13]} 29. hxg5 {[%emt 0:00:02]} hxg5 {
[%emt 0:00:01]} 30. Qc2 {[%emt 0:00:03]} Qh3 {[%emt 0:00:13]} 31. Qd2 {[%emt 0:
00:04]} Re6 {[%emt 0:00:05]} 0-1

[Event "FIDE Women World Blitz 2021"]
[Site "Warsaw"]
[Date "2021.12.29"]
[Round "2.21"]
[White "Katkov, Michelle"]
[Black "Mamedjarova, Zeinab"]
[Result "0-1"]
[ECO "C42"]
[WhiteElo "1651"]
[BlackElo "2249"]
[Annotator "NA"]
[PlyCount "80"]
[EventDate "2021.12.29"]
[EventType "swiss"]
[EventCountry "POL"]
[Tiebreak "Cut1 Buchholz"]
[SourceTitle "playchess.com"]
[Source "ChessBase"]
[SourceQuality "1"]
[TimeControl "180+2"]

1. e4 {[%emt 0:00:01]} e5 {[%emt 0:00:01]} 2. Nf3 {[%emt 0:00:01]} d6 {[%emt 0:
00:01]} 3. Bc4 {[%emt 0:00:03]} Be7 {[%emt 0:00:11]} 4. d3 {[%emt 0:00:03]} Nf6
{[%emt 0:00:01]} 5. Nc3 {[%emt 0:00:09]} O-O {[%emt 0:00:02]} 6. h3 {[%emt 0:
00:09]} c6 {[%emt 0:00:01]} 7. O-O {[%emt 0:00:06]} Be6 {[%emt 0:00:27]} 8. Bb3
{[%emt 0:00:15]} a5 {[%emt 0:00:10]} 9. Ne2 {[%emt 0:00:23]} Na6 {[%emt 0:00:
01]} 10. Ng3 {[%emt 0:00:09]} Nc5 {[%emt 0:00:07]} 11. Re1 {[%emt 0:00:13]} a4
{[%emt 0:00:06]} 12. Bxe6 {[%emt 0:00:01]} fxe6 {[%emt 0:00:02]} 13. c3 {
[%emt 0:00:06]} Qe8 {[%emt 0:00:13]} 14. d4 {[%emt 0:00:01]} exd4 {[%emt 0:00:
07]} 15. cxd4 {[%emt 0:00:02]} Ncd7 {[%emt 0:00:09]} 16. e5 {[%emt 0:00:06]}
dxe5 {[%emt 0:00:09]} 17. dxe5 {[%emt 0:00:02]} Nd5 {[%emt 0:00:02]} 18. Qe2 {
[%emt 0:00:23]} Qg6 {[%emt 0:00:10]} 19. Qe4 {[%emt 0:00:07]} Qxe4 {[%emt 0:00:
14]} 20. Rxe4 {[%emt 0:00:01]} a3 {[%emt 0:00:10]} 21. b3 {[%emt 0:00:29]} Nc5
{[%emt 0:00:01]} 22. Rc4 {[%emt 0:00:12]} Nd3 {[%emt 0:00:12]} 23. Bd2 {
[%emt 0:00:12]} Rxf3 {[%emt 0:00:02]} 24. gxf3 {[%emt 0:00:02]} Nxe5 {[%emt 0:
00:01]} 25. Rc2 {[%emt 0:00:15]} Nxf3+ {[%emt 0:00:01]} 26. Kg2 {[%emt 0:00:00]
} Rf8 {[%emt 0:00:15]} 27. Be3 {[%emt 0:00:03]} Nh4+ {[%emt 0:00:15]} 28. Kg1 {
[%emt 0:00:03]} h6 {[%emt 0:00:29]} 29. Rd1 {[%emt 0:00:03]} Nxe3 {[%emt 0:00:
10]} 30. fxe3 {[%emt 0:00:01]} Bg5 31. Nf1 {[%emt 0:00:03]} Rf3 {[%emt 0:00:04]
} 32. Rd6 {[%emt 0:00:11]} Bxe3+ {[%emt 0:00:03]} 33. Nxe3 {[%emt 0:00:01]}
Rxe3 {[%emt 0:00:01]} 34. Kh2 {[%emt 0:00:01]} Nf3+ {[%emt 0:00:03]} 35. Kg2 {
[%emt 0:00:02]} Ne1+ {[%emt 0:00:01]} 36. Kf2 {[%emt 0:00:01]} Nxc2 {[%emt 0:
00:01]} 37. Rd2 {[%emt 0:00:01]} Rc3 {[%emt 0:00:01]} 38. Rd8+ {[%emt 0:00:04]}
Kh7 {[%emt 0:00:01]} 39. Rb8 {[%emt 0:00:01]} b5 {[%emt 0:00:01]} 40. Re8 {
[%emt 0:00:02]} Nb4 {[%emt 0:00:01]} 0-1